[Event "Turkish Cup 2022"]
[Site "Sakarya"]
[Date "2022.03.27"]
[Round "4.19"]
[White "Gunduz, Umut Erdem"]
[Black "Caliskan, Soner"]
[Result "1-0"]
[ECO "B01"]
[WhiteElo "2258"]
[BlackElo "1661"]
[Annotator "NA"]
[PlyCount "97"]
[EventDate "2022.03.25"]
[EventType "swiss"]
[EventCountry "TUR"]
[SourceTitle "playchess.com"]
[Source "ChessBase"]
[SourceQuality "1"]
[TimeControl "5400+30"]

1. e4 {[%emt 0:09:00]} d5 {[%emt 0:02:00]} 2. exd5 {[%emt 0:00:30]} Nf6 {[%emt 0:00:00]} 3. d4 {[%emt 0:00:30]} c6 {[%emt 0:00:00]} 4. dxc6 {[%emt 0:02:30]} Nxc6 {[%emt 0:00:30]} 5. Nf3 {[%emt 0:00:30]} Bg4 {[%emt 0:00:30]} 6. Bb5 {[%emt 0:00:30]} Qb6 {[%emt 0:06:30]} 7. Nc3 {[%emt 0:01:30]} O-O-O {[%emt 0:01:30]} 8. Bxc6 {[%emt 0:01:30]} Qxc6 {[%emt 0:01:30]} 9. Be3 {[%emt 0:00:30]} e5 {[%emt 0:02:30]} 10. d5 {[%emt 0:02:30]} Nxd5 {[%emt 0:04:30]} 11. Nxe5 {[%emt 0:01:30]} Bxd1 {[%emt 0:11:30]} 12. Nxc6 {[%emt 0:04:30]} bxc6 {[%emt 0:09:30]} 13. Nxd1 {[%emt 0:05:30]} Nb4 {[%emt 0:04:30]} 14. Rc1 {[%emt 0:04:30]} Nxa2 {[%emt 0:01:30]} 15. Ra1 {[%emt 0:00:30]} Nb4 {[%emt 0:00:00]} 16. Rxa7 {[%emt 0:00:30]} Nxc2+ {[%emt 0:00:00]} 17. Ke2 {[%emt 0:00:00]} Rd7 {[%emt 0:06:30]} 18. Ra4 {[%emt 0:03:00]} Bd6 {[%emt 0:09:30]} 19. Rc4 {[%emt 0:03:30]} Nxe3 {[%emt 0:06:30]} 20. Nxe3 {[%emt 0:00:30]} Rb7 {[%emt 0:05:30]} 21. Rxc6+ {[%emt 0:00:30]} Kd7 {[%emt 0:00:00]} 22. Rc2 {[%emt 0:00:30]} Rhb8 {[%emt 0:00:00]} 23. Nc4 {[%emt 0:00:00]} Re8+ {[%emt 0:02:30]} 24. Kd3 {[%emt 0:03:00]} Rb3+ {[%emt 0:02:30]} 25. Rc3 {[%emt 0:00:00]} Rb5 {[%emt 0:01:30]} 26. Kc2 {[%emt 0:03:00]} Re2+ {[%emt 0:02:30]} 27. Kb1 {[%emt 0:00:30]} Ke6 {[%emt 0:04:35]} 28. Rc2 {[%emt 0:00:00]} Re4 {[%emt 0:02:16]} 29. Rd1 {[%emt 0:11:00]} Be5 {[%emt 0:05:08]} 30. f3 {[%emt 0:00:30]} Rd4 {[%emt 0:00:29]} 31. Re1 {[%emt 0:00:30]} Kf6 {[%emt 0:01:50]} 32. Nxe5 {[%emt 0:01:30]} Rxe5 {[%emt 0:00:30]} 33. Rxe5 {[%emt 0:00:30]} Kxe5 {[%emt 0:00:00]} 34. Ka2 {[%emt 0:00:00]} Rd3 {[%emt 0:00:36]} 35. b3 {[%emt 0:01:00]} h5 {[%emt 0:01:24]} 36. Ka3 {[%emt 0:01:30]} h4 {[%emt 0:00:30]} 37. h3 {[%emt 0:00:00]} g5 {[%emt 0:00:47]} 38. Ka4 {[%emt 0:00:00]} f5 {[%emt 0:01:24]} 39. b4 {[%emt 0:00:00]} Rd4 {[%emt 0:00:29]} 40. Ka5 {[%emt 0:00:00]} g4 {[%emt 0:00:30]} 41. fxg4 {[%emt 0:00:30]} fxg4 {[%emt 0:00:30]} 42. hxg4 {[%emt 0:00:30]} Rxg4 {[%emt 0:00:30]} 43. b5 {[%emt 0:00:00]} Kd4 {[%emt 0:01:15]} 44. b6 {[%emt 0:00:00]} Kd3 {[%emt 0:00:20]} 45. Ra2 {[%emt 0:00:00]} Rg5+ {[%emt 0:03:17]} 46. Ka6 {[%emt 0:00:00]} Kc4 {[%emt 0:00:20]} 47. b7 {[%emt 0:00:00]} Kb3 {[%emt 0:00:23]} 48. Rf2 {[%emt 0:01:00]} Ka4 {[%emt 0:01:11]} 49. Rf4+ {[%emt 0:00:00]} 1-0

[Event "Turkish Cup 2022"]
[Site "Sakarya"]
[Date "2022.03.27"]
[Round "4.20"]
[White "Buyuk, Eymen Eren"]
[Black "Danaci, Ege"]
[Result "1/2-1/2"]
[ECO "E73"]
[WhiteElo "1526"]
[BlackElo "2264"]
[Annotator "NA"]
[PlyCount "83"]
[EventDate "2022.03.25"]
[EventType "swiss"]
[EventCountry "TUR"]
[SourceTitle "playchess.com"]
[Source "ChessBase"]
[SourceQuality "1"]
[TimeControl "5400+30"]

1. d4 {[%emt 0:01:00]} Nf6 {[%emt 0:02:00]} 2. c4 {[%emt 0:00:30]} g6 {[%emt 0:02:30]} 3. Nc3 {[%emt 0:01:30]} Bg7 {[%emt 0:00:30]} 4. e4 {[%emt 0:00:30]} d6 {[%emt 0:00:30]} 5. Be2 {[%emt 0:00:30]} O-O {[%emt 0:00:30]} 6. g4 {[%emt 0:00:00]} c5 {[%emt 0:00:00]} 7. d5 {[%emt 0:01:00]} e6 {[%emt 0:00:00]} 8. f3 {[%emt 0:00:00]} exd5 {[%emt 0:06:30]} 9. cxd5 {[%emt 0:00:00]} Na6 {[%emt 0:01:30]} 10. Kf1 {[%emt 0:05:30]} Nc7 {[%emt 0:07:30]} 11. h4 {[%emt 0:04:30]} a6 {[%emt 0:01:30]} 12. a4 {[%emt 0:00:00]} h5 {[%emt 0:11:30]} 13. Nh3 {[%emt 0:18:00]} hxg4 {[%emt 0:16:30]} 14. fxg4 {[%emt 0:00:30]} Nd7 {[%emt 0:00:30]} 15. Kg2 {[%emt 0:09:30]} Ne5 {[%emt 0:05:30]} 16. h5 {[%emt 0:02:30]} gxh5 {[%emt 0:00:30]} 17. gxh5 {[%emt 0:00:30]} f5 {[%emt 0:04:30]} 18. h6 {[%emt 0:16:30]} Bf6 {[%emt 0:02:30]} 19. Rf1 {[%emt 0:00:30]} Ng6 {[%emt 0:16:05]} 20. exf5 {[%emt 0:06:30]} Bxf5 {[%emt 0:00:31]} 21. Bg4 {[%emt 0:07:30]} Bxc3 {[%emt 0:14:07]} 22. Bxf5 {[%emt 0:05:12]} Nh4+ {[%emt 0:00:09]} 23. Kh1 {[%emt 0:00:00]} Nxf5 {[%emt 0:04:24]} 24. Qg4+ {[%emt 0:00:53]} Kh8 {[%emt 0:00:04]} 25. bxc3 {[%emt 0:01:46]} Ng3+ {[%emt 0:01:02]} 26. Qxg3 {[%emt 0:00:14]} Rxf1+ {[%emt 0:00:05]} 27. Kg2 {[%emt 0:00:14]} Rf7 {[%emt 0:00:06]} 28. c4 {[%emt 0:08:20]} Qf6 {[%emt 0:00:28]} 29. Rb1 {[%emt 0:01:37]} Qf1+ {[%emt 0:01:16]} 30. Kh2 {[%emt 0:00:44]} Qe2+ {[%emt 0:00:07]} 31. Qg2 {[%emt 0:00:37]} Qxg2+ {[%emt 0:00:53]} 32. Kxg2 {[%emt 0:00:30]} Rg8+ {[%emt 0:00:30]} 33. Kh2 {[%emt 0:00:00]} b5 {[%emt 0:00:59]} 34. axb5 {[%emt 0:00:46]} axb5 {[%emt 0:00:07]} 35. Ng5 {[%emt 0:00:18]} Rf2+ {[%emt 0:00:16]} 36. Kg3 {[%emt 0:00:47]} Rc2 {[%emt 0:00:13]} 37. Kh4 {[%emt 0:00:43]} Rxc4+ {[%emt 0:01:29]} 38. Kh5 {[%emt 0:00:06]} Nxd5 {[%emt 0:00:52]} 39. Bb2+ {[%emt 0:02:38]} Nc3 {[%emt 0:00:02]} 40. Re1 {[%emt 0:00:35]} Rf8 {[%emt 0:01:43]} 41. Re7 {[%emt 0:00:32]} b4 {[%emt 0:00:48]} 42. Rh7+ {[%emt 0:00:06]} 1/2-1/2

[Event "Turkish Cup 2022"]
[Site "Sakarya"]
[Date "2022.03.27"]
[Round "4.21"]
[White "Atayman, Evren"]
[Black "Kilic, Efe Mert"]
[Result "0-1"]
[ECO "A48"]
[WhiteElo "1662"]
[BlackElo "2220"]
[Annotator "NA"]
[PlyCount "78"]
[EventDate "2022.03.25"]
[EventType "swiss"]
[EventCountry "TUR"]
[SourceTitle "playchess.com"]
[Source "ChessBase"]
[SourceQuality "1"]
[TimeControl "5400+30"]

1. d4 {[%emt 0:01:00]} Nf6 {[%emt 0:01:00]} 2. Nf3 {[%emt 0:00:30]} c5 {[%emt 0:00:30]} 3. e3 {[%emt 0:01:30]} g6 {[%emt 0:01:30]} 4. c3 {[%emt 0:00:30]} Bg7 {[%emt 0:00:30]} 5. Bd3 {[%emt 0:04:30]} O-O {[%emt 0:03:30]} 6. O-O {[%emt 0:00:30]} b6 {[%emt 0:05:30]} 7. Re1 {[%emt 0:02:30]} d5 {[%emt 0:00:30]} 8. Nbd2 {[%emt 0:02:30]} Bb7 {[%emt 0:01:30]} 9. e4 {[%emt 0:09:30]} cxd4 {[%emt 0:00:30]} 10. cxd4 {[%emt 0:02:30]} dxe4 {[%emt 0:00:30]} 11. Nxe4 {[%emt 0:00:30]} Nc6 {[%emt 0:02:30]} 12. Qa4 {[%emt 0:06:30]} a6 {[%emt 0:02:30]} 13. Bg5 {[%emt 0:06:30]} b5 {[%emt 0:03:30]} 14. Qa3 {[%emt 0:03:30]} b4 {[%emt 0:11:30]} 15. Qb3 {[%emt 0:01:30]} Nxd4 {[%emt 0:01:30]} 16. Qxb4 {[%emt 0:01:30]} Nxf3+ {[%emt 0:00:30]} 17. gxf3 {[%emt 0:00:00]} Qxd3 {[%emt 0:34:30]} 18. Qxb7 {[%emt 0:02:00]} h6 {[%emt 0:00:30]} 19. Rad1 {[%emt 0:07:30]} Qb5 {[%emt 0:02:30]} 20. Qxb5 {[%emt 0:00:30]} axb5 {[%emt 0:00:30]} 21. Bxf6 {[%emt 0:00:30]} exf6 {[%emt 0:00:00]} 22. a3 {[%emt 0:07:30]} f5 {[%emt 0:00:00]} 23. Nd6 {[%emt 0:00:30]} Bxb2 {[%emt 0:01:30]} 24. Nxb5 {[%emt 0:00:30]} Rfb8 {[%emt 0:08:06]} 25. Nd6 {[%emt 0:04:30]} Bxa3 {[%emt 0:00:48]} 26. Rd3 {[%emt 0:01:30]} Bb4 {[%emt 0:02:26]} 27. Red1 {[%emt 0:03:30]} Kg7 {[%emt 0:01:30]} 28. Kg2 {[%emt 0:02:30]} Ra2 {[%emt 0:00:43]} 29. Nc4 {[%emt 0:01:30]} Rc8 {[%emt 0:00:44]} 30. Rc1 {[%emt 0:02:30]} Be7 {[%emt 0:09:01]} 31. Rdc3 {[%emt 0:01:30]} Bg5 {[%emt 0:01:18]} 32. R1c2 {[%emt 0:01:30]} Ra1 {[%emt 0:00:22]} 33. Nd6 {[%emt 0:00:30]} Rd8 {[%emt 0:01:10]} 34. Rc6 {[%emt 0:00:30]} Bf4 {[%emt 0:00:29]} 35. Nc4 {[%emt 0:19:23]} Rdd1 {[%emt 0:00:16]} 36. Ne3 {[%emt 0:00:00]} Rg1+ {[%emt 0:01:04]} 37. Kh3 {[%emt 0:00:27]} Rh1 {[%emt 0:00:47]} 38. Ng4 {[%emt 0:00:41]} Rag1 {[%emt 0:00:51]} 39. Kh4 {[%emt 0:03:39]} Rxg4+ {[%emt 0:00:30]} 0-1

[Event "Turkish Cup 2022"]
[Site "Sakarya"]
[Date "2022.03.27"]
[Round "4.22"]
[White "Ozdemir, Serhan Berat"]
[Black "Kaygisiz, Ozgur Can"]
[Result "1-0"]
[ECO "B80"]
[WhiteElo "2185"]
[BlackElo "1744"]
[Annotator "NA"]
[PlyCount "73"]
[EventDate "2022.03.25"]
[EventType "swiss"]
[EventCountry "TUR"]
[SourceTitle "playchess.com"]
[Source "ChessBase"]
[SourceQuality "1"]
[TimeControl "5400+30"]

1. e4 {[%emt 0:09:00]} c5 {[%emt 0:01:00]} 2. Nf3 {[%emt 0:00:30]} d6 {[%emt 0:00:30]} 3. d4 {[%emt 0:00:00]} cxd4 {[%emt 0:00:00]} 4. Nxd4 {[%emt 0:05:00]} Nf6 {[%emt 0:00:00]} 5. Nc3 {[%emt 0:00:30]} a6 {[%emt 0:00:00]} 6. f3 {[%emt 0:00:00]} e6 {[%emt 0:00:00]} 7. Be3 {[%emt 0:00:00]} Be7 {[%emt 0:00:30]} 8. Qd2 {[%emt 0:00:00]} b5 {[%emt 0:00:30]} 9. O-O-O {[%emt 0:05:00]} Bb7 {[%emt 0:01:30]} 10. g4 {[%emt 0:03:30]} h6 {[%emt 0:00:30]} 11. Kb1 {[%emt 0:03:30]} Nbd7 {[%emt 0:00:30]} 12. Bd3 {[%emt 0:09:30]} Rc8 {[%emt 0:04:30]} 13. h4 {[%emt 0:00:30]} Ne5 {[%emt 0:05:30]} 14. g5 {[%emt 0:02:30]} hxg5 {[%emt 0:01:30]} 15. hxg5 {[%emt 0:00:30]} Rxh1 {[%emt 0:01:30]} 16. Rxh1 {[%emt 0:00:00]} Nfd7 {[%emt 0:00:30]} 17. f4 {[%emt 0:02:00]} Nxd3 {[%emt 0:05:30]} 18. cxd3 {[%emt 0:00:00]} b4 {[%emt 0:06:30]} 19. Nce2 {[%emt 0:01:00]} g6 {[%emt 0:00:30]} 20. Rh8+ {[%emt 0:01:30]} Bf8 {[%emt 0:10:30]} 21. f5 {[%emt 0:06:30]} e5 {[%emt 0:00:30]} 22. fxg6 {[%emt 0:04:30]} fxg6 {[%emt 0:05:30]} 23. Ne6 {[%emt 0:01:30]} Qe7 {[%emt 0:04:30]} 24. Nxf8 {[%emt 0:00:30]} Nxf8 {[%emt 0:00:30]} 25. Qxb4 {[%emt 0:00:00]} d5 {[%emt 0:02:30]} 26. Qa4+ {[%emt 0:00:00]} Kf7 {[%emt 0:00:30]} 27. exd5 {[%emt 0:02:30]} Bxd5 {[%emt 0:00:30]} 28. Nc3 {[%emt 0:02:30]} Be6 {[%emt 0:14:30]} 29. Qxa6 {[%emt 0:04:30]} Qd7 {[%emt 0:01:30]} 30. Ne4 {[%emt 0:12:30]} Kg7 {[%emt 0:03:30]} 31. Rh2 {[%emt 0:03:30]} Rc6 {[%emt 0:01:30]} 32. Qa3 {[%emt 0:00:30]} Bf5 {[%emt 0:19:16]} 33. Rd2 {[%emt 0:11:09]} Ne6 {[%emt 0:01:31]} 34. Nf6 {[%emt 0:05:12]} Qd8 {[%emt 0:06:18]} 35. b4 {[%emt 0:00:04]} Nd4 {[%emt 0:02:32]} 36. Qa7+ {[%emt 0:00:36]} Rc7 {[%emt 0:00:53]} 37. Qxc7+ {[%emt 0:00:07]} 1-0

[Event "Turkish Cup 2022"]
[Site "Sakarya"]
[Date "2022.03.27"]
[Round "4.23"]
[White "Bacak, Muhammed Kaan"]
[Black "Sakmak, Kutay"]
[Result "1-0"]
[ECO "A15"]
[WhiteElo "2155"]
[BlackElo "1718"]
[Annotator "NA"]
[PlyCount "77"]
[EventDate "2022.03.25"]
[EventType "swiss"]
[EventCountry "TUR"]
[SourceTitle "playchess.com"]
[Source "ChessBase"]
[SourceQuality "1"]
[TimeControl "5400+30"]

1. Nf3 {[%emt 0:01:00]} Nf6 {[%emt 0:01:00]} 2. g3 {[%emt 0:00:30]} g6 {[%emt 0:00:30]} 3. b3 {[%emt 0:00:30]} Bg7 {[%emt 0:00:00]} 4. Bb2 {[%emt 0:00:00]} b6 {[%emt 0:00:00]} 5. Bg2 {[%emt 0:00:00]} Bb7 {[%emt 0:00:30]} 6. O-O {[%emt 0:00:30]} O-O {[%emt 0:00:30]} 7. d4 {[%emt 0:01:30]} d6 {[%emt 0:01:30]} 8. c4 {[%emt 0:00:30]} Nbd7 {[%emt 0:01:30]} 9. Qc2 {[%emt 0:01:30]} c5 {[%emt 0:02:30]} 10. d5 {[%emt 0:00:30]} b5 {[%emt 0:02:30]} 11. Nbd2 {[%emt 0:01:30]} bxc4 {[%emt 0:04:30]} 12. bxc4 {[%emt 0:00:30]} Nb6 {[%emt 0:00:00]} 13. e4 {[%emt 0:02:30]} Ba6 {[%emt 0:03:00]} 14. Rfe1 {[%emt 0:06:30]} Rb8 {[%emt 0:03:30]} 15. Bf1 {[%emt 0:05:30]} Ne8 {[%emt 0:11:30]} 16. Bxg7 {[%emt 0:04:30]} Nxg7 {[%emt 0:01:30]} 17. e5 {[%emt 0:00:30]} Bc8 {[%emt 0:01:30]} 18. Qc3 {[%emt 0:12:30]} Na4 {[%emt 0:08:30]} 19. Qe3 {[%emt 0:01:30]} Nf5 {[%emt 0:04:30]} 20. Qf4 {[%emt 0:00:30]} Rb4 {[%emt 0:25:30]} 21. a3 {[%emt 0:13:30]} Rb6 {[%emt 0:02:30]} 22. Ne4 {[%emt 0:03:30]} f6 {[%emt 0:07:34]} 23. e6 {[%emt 0:03:30]} Ba6 {[%emt 0:01:06]} 24. g4 {[%emt 0:07:30]} Nd4 {[%emt 0:07:04]} 25. Nxd4 {[%emt 0:03:30]} cxd4 {[%emt 0:00:07]} 26. Qh6 {[%emt 0:00:00]} Nc5 {[%emt 0:03:14]} 27. Rad1 {[%emt 0:04:00]} Rb3 {[%emt 0:02:04]} 28. Rxd4 {[%emt 0:01:30]} Rxa3 {[%emt 0:00:07]} 29. Nxc5 {[%emt 0:01:30]} dxc5 {[%emt 0:00:03]} 30. Rd3 {[%emt 0:00:00]} Qa5 {[%emt 0:00:54]} 31. Ree3 {[%emt 0:06:14]} Rxd3 {[%emt 0:01:43]} 32. Bxd3 {[%emt 0:00:06]} Qa1+ {[%emt 0:02:29]} 33. Kg2 {[%emt 0:00:07]} f5 {[%emt 0:01:37]} 34. gxf5 {[%emt 0:00:46]} Qg7 {[%emt 0:00:00]} 35. Qh4 {[%emt 0:04:51]} Rf6 {[%emt 0:00:11]} 36. fxg6 {[%emt 0:00:00]} hxg6 {[%emt 0:00:16]} 37. d6 {[%emt 0:01:04]} exd6 {[%emt 0:00:18]} 38. e7 {[%emt 0:00:30]} Bb7+ {[%emt 0:00:01]} 39. Kg1 {[%emt 0:00:47]} 1-0

[Event "Turkish Cup 2022"]
[Site "Sakarya"]
[Date "2022.03.27"]
[Round "4.24"]
[White "Tarhan, Adar"]
[Black "Gozubuyukoglu, Selami"]
[Result "1-0"]
[ECO "C54"]
[WhiteElo "2125"]
[BlackElo "1747"]
[Annotator "NA"]
[PlyCount "75"]
[EventDate "2022.03.25"]
[EventType "swiss"]
[EventCountry "TUR"]
[SourceTitle "playchess.com"]
[Source "ChessBase"]
[SourceQuality "1"]
[TimeControl "5400+30"]

1. e4 {[%emt 0:01:00]} e5 {[%emt 0:05:00]} 2. Nf3 {[%emt 0:00:30]} Nc6 {[%emt 0:00:30]} 3. Bc4 {[%emt 0:00:00]} Bc5 {[%emt 0:00:30]} 4. c3 {[%emt 0:00:00]} Nf6 {[%emt 0:00:00]} 5. d3 {[%emt 0:00:00]} a6 {[%emt 0:00:00]} 6. O-O {[%emt 0:01:00]} d6 {[%emt 0:00:00]} 7. a4 {[%emt 0:01:30]} O-O {[%emt 0:01:00]} 8. b4 {[%emt 0:00:30]} Ba7 {[%emt 0:05:30]} 9. Bg5 {[%emt 0:01:30]} h6 {[%emt 0:02:30]} 10. Bh4 {[%emt 0:00:30]} g5 {[%emt 0:01:30]} 11. Bg3 {[%emt 0:00:00]} Ne7 {[%emt 0:00:30]} 12. Re1 {[%emt 0:01:00]} Ng6 {[%emt 0:00:30]} 13. Nbd2 {[%emt 0:02:30]} Qe7 {[%emt 0:01:30]} 14. d4 {[%emt 0:02:30]} Kh7 {[%emt 0:00:30]} 15. Qb3 {[%emt 0:01:30]} Nh5 {[%emt 0:01:30]} 16. dxe5 {[%emt 0:04:30]} dxe5 {[%emt 0:00:30]} 17. Nf1 {[%emt 0:00:00]} Nhf4 {[%emt 0:02:30]} 18. Ne3 {[%emt 0:02:00]} c6 {[%emt 0:03:30]} 19. b5 {[%emt 0:03:30]} h5 {[%emt 0:02:30]} 20. b6 {[%emt 0:01:30]} Bb8 {[%emt 0:00:30]} 21. Nf5 {[%emt 0:00:30]} Qf6 {[%emt 0:00:00]} 22. h4 {[%emt 0:00:30]} gxh4 {[%emt 0:01:00]} 23. N3xh4 {[%emt 0:01:30]} Bd6 {[%emt 0:03:30]} 24. Nxg6 {[%emt 0:11:30]} fxg6 {[%emt 0:03:30]} 25. Nxd6 {[%emt 0:01:30]} Qxd6 {[%emt 0:00:30]} 26. Rad1 {[%emt 0:00:30]} Qf6 {[%emt 0:00:30]} 27. Qb4 {[%emt 0:00:30]} Be6 {[%emt 0:03:30]} 28. Bxf4 {[%emt 0:00:30]} Bxc4 {[%emt 0:03:30]} 29. Qxc4 {[%emt 0:03:30]} Qxf4 {[%emt 0:01:30]} 30. Rd7+ {[%emt 0:00:30]} Kh6 {[%emt 0:00:30]} 31. Qc5 {[%emt 0:00:30]} Qg5 {[%emt 0:22:30]} 32. Rxb7 {[%emt 0:01:30]} Rf3 {[%emt 0:02:30]} 33. Qe7 {[%emt 0:04:30]} Qd2 {[%emt 0:09:30]} 34. Qg7+ {[%emt 0:00:30]} Kg5 {[%emt 0:00:30]} 35. Qxe5+ {[%emt 0:00:00]} Kh6 {[%emt 0:00:00]} 36. gxf3 {[%emt 0:01:00]} Qxe1+ {[%emt 0:00:00]} 37. Kg2 {[%emt 0:00:00]} Qd2 {[%emt 0:01:30]} 38. f4 {[%emt 0:00:00]} 1-0

[Event "Turkish Cup 2022"]
[Site "Sakarya"]
[Date "2022.03.27"]
[Round "4.26"]
[White "Karacor, Kemal"]
[Black "Akin, Kadir"]
[Result "0-1"]
[ECO "D23"]
[WhiteElo "1700"]
[BlackElo "1964"]
[Annotator "NA"]
[PlyCount "90"]
[EventDate "2022.03.25"]
[EventType "swiss"]
[EventCountry "TUR"]
[SourceTitle "playchess.com"]
[Source "ChessBase"]
[SourceQuality "1"]
[TimeControl "5400+30"]

1. d4 {[%emt 0:03:00]} d5 {[%emt 0:07:00]} 2. c4 {[%emt 0:00:00]} dxc4 {[%emt 0:00:30]} 3. Qa4+ {[%emt 0:00:00]} c6 {[%emt 0:02:30]} 4. Qxc4 {[%emt 0:00:30]} Nf6 {[%emt 0:00:30]} 5. Nf3 {[%emt 0:00:30]} b5 {[%emt 0:03:30]} 6. Qc2 {[%emt 0:00:30]} Bb7 {[%emt 0:00:00]} 7. e3 {[%emt 0:00:30]} e6 {[%emt 0:01:00]} 8. Be2 {[%emt 0:00:30]} Nbd7 {[%emt 0:00:00]} 9. O-O {[%emt 0:00:30]} a6 {[%emt 0:00:00]} 10. a4 {[%emt 0:00:30]} Rc8 {[%emt 0:00:30]} 11. Nc3 {[%emt 0:04:30]} b4 {[%emt 0:04:30]} 12. Ne4 {[%emt 0:00:30]} Nxe4 {[%emt 0:01:30]} 13. Qxe4 {[%emt 0:00:00]} Qc7 {[%emt 0:01:30]} 14. Qd3 {[%emt 0:06:00]} c5 {[%emt 0:02:30]} 15. b3 {[%emt 0:00:30]} Bd6 {[%emt 0:03:30]} 16. Bb2 {[%emt 0:05:30]} O-O {[%emt 0:03:30]} 17. Rac1 {[%emt 0:00:30]} Rfd8 {[%emt 0:02:30]} 18. Rfd1 {[%emt 0:06:30]} Qb8 {[%emt 0:02:30]} 19. Qb1 {[%emt 0:05:30]} h6 {[%emt 0:09:30]} 20. h3 {[%emt 0:00:00]} a5 {[%emt 0:02:30]} 21. Ba1 {[%emt 0:11:00]} Be7 {[%emt 0:02:30]} 22. Bb5 {[%emt 0:03:30]} Qa8 {[%emt 0:02:30]} 23. Be2 {[%emt 0:08:30]} Be4 {[%emt 0:02:30]} 24. Qa2 {[%emt 0:05:30]} Bd5 {[%emt 0:00:30]} 25. Ne1 {[%emt 0:06:30]} Bf6 {[%emt 0:02:30]} 26. Bc4 {[%emt 0:01:30]} cxd4 {[%emt 0:00:30]} 27. Bxd4 {[%emt 0:06:30]} Bxc4 {[%emt 0:02:30]} 28. Bxf6 {[%emt 0:01:30]} Bxb3 {[%emt 0:01:30]} 29. Qxb3 {[%emt 0:04:30]} Nxf6 {[%emt 0:00:30]} 30. Rxd8+ {[%emt 0:01:41]} Rxd8 {[%emt 0:00:30]} 31. Qc4 {[%emt 0:00:17]} Nd5 {[%emt 0:00:30]} 32. Nf3 {[%emt 0:01:04]} Nc3 {[%emt 0:00:30]} 33. Rxc3 {[%emt 0:04:12]} bxc3 {[%emt 0:01:30]} 34. Qxc3 {[%emt 0:00:03]} Rc8 {[%emt 0:03:30]} 35. Qa3 {[%emt 0:01:34]} Qc6 {[%emt 0:00:30]} 36. Kh2 {[%emt 0:01:33]} Qc7+ {[%emt 0:01:30]} 37. g3 {[%emt 0:00:22]} Qc5 {[%emt 0:00:00]} 38. Qd3 {[%emt 0:03:08]} Qc2 {[%emt 0:00:00]} 39. Qf1 {[%emt 0:00:30]} Qxa4 {[%emt 0:00:00]} 40. Qa6 {[%emt 0:00:55]} Qc6 {[%emt 0:00:00]} 41. Qe2 {[%emt 0:01:08]} Qc2 {[%emt 0:00:30]} 42. Qf1 {[%emt 0:00:42]} a4 {[%emt 0:00:30]} 43. Nd4 {[%emt 0:00:29]} Qb2 {[%emt 0:00:30]} 44. Kg2 {[%emt 0:00:21]} a3 {[%emt 0:00:00]} 45. Qa6 {[%emt 0:00:28]} Rb8 {[%emt 0:00:00]} 0-1

[Event "Turkish Cup 2022"]
[Site "Sakarya"]
[Date "2022.03.27"]
[Round "4.27"]
[White "Ibik, Halit Yavuz"]
[Black "Elmas, Mustafa"]
[Result "1-0"]
[ECO "B90"]
[WhiteElo "1996"]
[BlackElo "1614"]
[Annotator "NA"]
[PlyCount "97"]
[EventDate "2022.03.25"]
[EventType "swiss"]
[EventCountry "TUR"]
[SourceTitle "playchess.com"]
[Source "ChessBase"]
[SourceQuality "1"]
[TimeControl "5400+30"]

1. e4 {[%emt 0:05:00]} c5 {[%emt 0:01:00]} 2. Nf3 {[%emt 0:00:30]} d6 {[%emt 0:00:30]} 3. d4 {[%emt 0:00:30]} cxd4 {[%emt 0:00:30]} 4. Nxd4 {[%emt 0:00:30]} Nf6 {[%emt 0:00:00]} 5. Nc3 {[%emt 0:00:00]} a6 {[%emt 0:00:00]} 6. Be3 {[%emt 0:00:00]} e5 {[%emt 0:00:00]} 7. Nb3 {[%emt 0:00:30]} Be6 {[%emt 0:00:00]} 8. f3 {[%emt 0:00:30]} Nbd7 {[%emt 0:00:00]} 9. Qd2 {[%emt 0:01:30]} Qc7 {[%emt 0:00:00]} 10. g4 {[%emt 0:01:30]} h6 {[%emt 0:00:30]} 11. O-O-O {[%emt 0:13:30]} b5 {[%emt 0:00:00]} 12. Qf2 {[%emt 0:02:30]} b4 {[%emt 0:04:00]} 13. Nd5 {[%emt 0:02:30]} Bxd5 {[%emt 0:00:30]} 14. exd5 {[%emt 0:00:00]} a5 {[%emt 0:00:30]} 15. Bb5 {[%emt 0:04:00]} a4 {[%emt 0:05:30]} 16. Bb6 {[%emt 0:12:30]} Qb8 {[%emt 0:02:30]} 17. Na5 {[%emt 0:05:30]} b3 {[%emt 0:04:30]} 18. cxb3 {[%emt 0:06:30]} axb3 {[%emt 0:00:00]} 19. a4 {[%emt 0:00:30]} Be7 {[%emt 0:06:00]} 20. Nxb3 {[%emt 0:02:30]} O-O {[%emt 0:00:30]} 21. Be3 {[%emt 0:00:30]} Qb7 {[%emt 0:03:30]} 22. Qd2 {[%emt 0:03:30]} Nb6 {[%emt 0:01:30]} 23. Bxb6 {[%emt 0:02:30]} Qxb6 {[%emt 0:00:30]} 24. Kb1 {[%emt 0:00:30]} Nd7 {[%emt 0:03:30]} 25. Qd3 {[%emt 0:04:30]} Nc5 {[%emt 0:02:30]} 26. Nxc5 {[%emt 0:00:30]} Qxc5 {[%emt 0:00:30]} 27. Rc1 {[%emt 0:00:00]} Qa7 {[%emt 0:00:30]} 28. Rc6 {[%emt 0:02:00]} Rfc8 {[%emt 0:00:30]} 29. Rhc1 {[%emt 0:00:30]} Rxc6 {[%emt 0:00:30]} 30. dxc6 {[%emt 0:00:30]} Qc7 {[%emt 0:00:30]} 31. Qd5 {[%emt 0:01:30]} Bg5 {[%emt 0:00:30]} 32. Rd1 {[%emt 0:00:30]} Rd8 {[%emt 0:00:30]} 33. Rd3 {[%emt 0:02:30]} Bf6 {[%emt 0:04:30]} 34. Rb3 {[%emt 0:06:30]} Rb8 {[%emt 0:03:30]} 35. Bd3 {[%emt 0:02:44]} Rxb3 {[%emt 0:07:30]} 36. Qxb3 {[%emt 0:00:02]} Kf8 {[%emt 0:00:00]} 37. Be4 {[%emt 0:03:44]} Bd8 {[%emt 0:02:00]} 38. Qb7 {[%emt 0:01:26]} g6 {[%emt 0:02:30]} 39. b4 {[%emt 0:00:54]} f5 {[%emt 0:02:30]} 40. gxf5 {[%emt 0:01:06]} gxf5 {[%emt 0:00:00]} 41. Bxf5 {[%emt 0:03:30]} d5 {[%emt 0:00:00]} 42. a5 {[%emt 0:00:43]} Qd6 {[%emt 0:01:30]} 43. a6 {[%emt 0:01:25]} e4 {[%emt 0:02:30]} 44. c7 {[%emt 0:00:34]} Bxc7 {[%emt 0:00:30]} 45. a7 {[%emt 0:00:05]} Qxh2 {[%emt 0:04:30]} 46. a8=Q+ {[%emt 0:00:08]} Kg7 {[%emt 0:00:30]} 47. Qxd5 {[%emt 0:00:49]} Qg1+ {[%emt 0:04:30]} 48. Ka2 {[%emt 0:00:34]} Qf2+ {[%emt 0:01:30]} 49. Ka3 {[%emt 0:00:19]} 1-0